[Event "105th British-ch 2018"]
[Site "Hull"]
[Date "2018.08.03"]
[Round "7"]
[White "Waddington, Mike P"]
[Black "Derakhshani, Borna"]
[Result "0-1"]
[ECO "A00"]
[WhiteElo "2110"]
[BlackElo "2315"]
[Annotator "NA"]
[PlyCount "58"]
[EventDate "2018.07.28"]
[EventType "swiss"]
[EventCountry "GBR"]
[SourceTitle "playchess.com"]
[Source "ChessBase"]
[SourceQuality "1"]
[TimeControl "40/5400+30:1800+30"]

1. Nc3 {[%emt 0:00:00]} d5 {[%emt 0:00:00]} 2. e4 {[%emt 0:00:00]} d4 {[%emt 0:00:13]} 3. Nce2 {[%emt 0:00:00]} e5 {[%emt 0:00:19]} 4. Ng3 {[%emt 0:00:04]} Be6 {[%emt 0:00:08]} 5. Nf3 {[%emt 0:00:14]} f6 {[%emt 0:00:13]} 6. Be2 {[%emt 0:01:35]} Qd7 {[%emt 0:00:18]} 7. O-O {[%emt 0:02:14]} h5 {[%emt 0:03:01]} 8. Nh4 {[%emt 0:01:24]} Bf7 {[%emt 0:00:53]} 9. d3 {[%emt 0:16:28]} Nc6 {[%emt 0:02:25]} 10. c3 {[%emt 0:03:31]} g6 {[%emt 0:02:24]} 11. a4 {[%emt 0:03:03]} Be7 {[%emt 0:01:33]} 12. Nf3 {[%emt 0:01:32]} h4 {[%emt 0:00:39]} 13. Nh1 {[%emt 0:00:32]} O-O-O {[%emt 0:09:42]} 14. a5 {[%emt 0:03:52]} a6 {[%emt 0:00:18]} 15. cxd4 {[%emt 0:02:13]} exd4 {[%emt 0:01:31]} 16. Ne1 {[%emt 0:01:35]} f5 {[%emt 0:02:31]} 17. f4 {[%emt 0:06:04]} Nf6 {[%emt 0:04:02]} 18. Nf2 {[%emt 0:05:29]} Nb4 {[%emt 0:11:12]} 19. Bf3 {[%emt 0:12:26]} Qb5 {[%emt 0:03:51]} 20. Qa4 {[%emt 0:04:23]} Qxa4 {[%emt 0:02:09]} 21. Rxa4 {[%emt 0:00:11]} Na2 {[%emt 0:00:07]} 22. Rxa2 {[%emt 0:05:14]} Bxa2 {[%emt 0:00:05]} 23. Bd2 {[%emt 0:00:14]} Bb3 {[%emt 0:01:55]} 24. Nh3 {[%emt 0:03:28]} fxe4 {[%emt 0:01:25]} 25. dxe4 {[%emt 0:00:16]} Bc4 {[%emt 0:00:34]} 26. Rf2 {[%emt 0:00:22]} Bc5 {[%emt 0:01:38]} 27. Nc2 {[%emt 0:01:19]} Bb3 {[%emt 0:00:50]} 28. Bb4 {[%emt 0:00:56]} d3 {[%emt 0:06:25]} 29. Bxc5 {[%emt 0:00:22]} dxc2 {[%emt 0:00:05]} 0-1

[Event "105th British-ch 2018"]
[Site "Hull"]
[Date "2018.08.03"]
[Round "7"]
[White "Maroroa, Sue Yuchan"]
[Black "Mcphillips, Joseph"]
[Result "0-1"]
[ECO "C06"]
[WhiteElo "2104"]
[BlackElo "2402"]
[Annotator "NA"]
[PlyCount "66"]
[EventDate "2018.07.28"]
[EventType "swiss"]
[EventCountry "GBR"]
[SourceTitle "playchess.com"]
[Source "ChessBase"]
[SourceQuality "1"]
[TimeControl "40/5400+30:1800+30"]

1. e4 {[%emt 0:00:00]} e6 {[%emt 0:00:00]} 2. d4 {[%emt 0:00:00]} d5 {[%emt 0:00:00]} 3. Nd2 {[%emt 0:00:00]} Nf6 {[%emt 0:00:00]} 4. e5 {[%emt 0:00:00]} Nfd7 {[%emt 0:00:00]} 5. Bd3 {[%emt 0:00:00]} c5 {[%emt 0:00:00]} 6. c3 {[%emt 0:00:00]} Nc6 {[%emt 0:00:00]} 7. Ngf3 {[%emt 0:00:00]} h5 {[%emt 0:00:00]} 8. h3 {[%emt 0:15:08]} Be7 {[%emt 0:14:53]} 9. Qe2 {[%emt 0:00:00]} cxd4 {[%emt 0:03:06]} 10. cxd4 {[%emt 0:00:00]} Nb4 {[%emt 0:00:04]} 11. Nb1 {[%emt 0:00:00]} Nxd3+ {[%emt 0:04:21]} 12. Qxd3 {[%emt 0:00:00]} b5 {[%emt 0:02:28]} 13. O-O {[%emt 0:05:14]} a5 {[%emt 0:04:32]} 14. Nc3 {[%emt 0:05:00]} b4 {[%emt 0:01:41]} 15. Nxd5 {[%emt 0:00:28]} Ba6 {[%emt 0:18:37]} 16. Qb1 {[%emt 0:02:30]} exd5 {[%emt 0:12:22]} 17. e6 {[%emt 0:00:38]} Bxf1 {[%emt 0:01:29]} 18. exd7+ {[%emt 0:15:18]} Qxd7 {[%emt 0:00:05]} 19. Kxf1 {[%emt 0:00:06]} O-O {[%emt 0:00:06]} 20. Bf4 {[%emt 0:01:47]} Qe6 {[%emt 0:03:01]} 21. Kg1 {[%emt 0:01:03]} Qe4 {[%emt 0:04:13]} 22. Qxe4 {[%emt 0:03:39]} dxe4 {[%emt 0:00:03]} 23. Ne5 {[%emt 0:00:01]} Bd6 {[%emt 0:05:21]} 24. Re1 {[%emt 0:02:24]} Rfe8 {[%emt 0:02:35]} 25. Bg3 {[%emt 0:06:33]} Rac8 {[%emt 0:05:21]} 26. Re2 {[%emt 0:04:44]} f6 {[%emt 0:02:42]} 27. Ng6 {[%emt 0:01:17]} Bxg3 {[%emt 0:01:05]} 28. fxg3 {[%emt 0:00:05]} Rc1+ {[%emt 0:03:14]} 29. Kf2 {[%emt 0:01:18]} e3+ {[%emt 0:01:14]} 30. Rxe3 {[%emt 0:00:15]} Rc2+ {[%emt 0:00:30]} 31. Kf3 {[%emt 0:00:30]} Rxe3+ {[%emt 0:00:30]} 32. Kxe3 {[%emt 0:00:30]} Kf7 {[%emt 0:00:00]} 33. Nf4 {[%emt 0:00:06]} Rxb2 {[%emt 0:00:00]} 0-1

[Event "105th British-ch 2018"]
[Site "Hull"]
[Date "2018.08.03"]
[Round "7"]
[White "Sugden, John N"]
[Black "Britton, Richard"]
[Result "0-1"]
[ECO "B25"]
[WhiteElo "2090"]
[BlackElo "2249"]
[Annotator "NA"]
[PlyCount "114"]
[EventDate "2018.07.28"]
[EventType "swiss"]
[EventCountry "GBR"]
[SourceTitle "playchess.com"]
[Source "ChessBase"]
[SourceQuality "1"]
[TimeControl "40/5400+30:1800+30"]

1. e4 {[%emt 0:00:00]} c5 {[%emt 0:00:00]} 2. Nc3 {[%emt 0:00:07]} Nc6 {[%emt 0:00:00]} 3. g3 {[%emt 0:00:12]} g6 {[%emt 0:00:00]} 4. Bg2 {[%emt 0:00:13]} Bg7 {[%emt 0:00:00]} 5. d3 {[%emt 0:00:17]} d6 {[%emt 0:00:00]} 6. f4 {[%emt 0:00:12]} Nf6 {[%emt 0:00:02]} 7. Nf3 {[%emt 0:00:42]} O-O {[%emt 0:00:07]} 8. O-O {[%emt 0:00:19]} Rb8 {[%emt 0:00:48]} 9. h3 {[%emt 0:08:21]} b5 {[%emt 0:00:05]} 10. g4 {[%emt 0:01:45]} b4 {[%emt 0:00:08]} 11. Ne2 {[%emt 0:00:57]} a5 {[%emt 0:00:05]} 12. Ng3 {[%emt 0:06:08]} Qc7 {[%emt 0:02:08]} 13. Be3 {[%emt 0:06:30]} Nd7 {[%emt 0:00:40]} 14. Rb1 {[%emt 0:01:55]} a4 {[%emt 0:02:25]} 15. Qd2 {[%emt 0:08:33]} Ba6 {[%emt 0:05:05]} 16. Rf2 {[%emt 0:09:37]} a3 {[%emt 0:04:38]} 17. b3 {[%emt 0:01:28]} Nd4 {[%emt 0:00:43]} 18. Ne2 {[%emt 0:06:56]} Nxe2+ {[%emt 0:22:25]} 19. Qxe2 {[%emt 0:00:59]} e6 {[%emt 0:00:30]} 20. Nd2 {[%emt 0:12:26]} Rbe8 {[%emt 0:08:11]} 21. f5 {[%emt 0:02:21]} exf5 {[%emt 0:05:13]} 22. gxf5 {[%emt 0:00:18]} d5 {[%emt 0:01:03]} 23. Bf4 {[%emt 0:04:35]} Qb6 {[%emt 0:03:36]} 24. fxg6 {[%emt 0:01:13]} hxg6 {[%emt 0:01:03]} 25. Qg4 {[%emt 0:06:05]} Nf6 {[%emt 0:01:54]} 26. Qh4 {[%emt 0:01:49]} dxe4 {[%emt 0:04:41]} 27. Nxe4 {[%emt 0:00:41]} Nxe4 {[%emt 0:01:08]} 28. Bxe4 {[%emt 0:00:57]} c4 {[%emt 0:06:35]} 29. Bh6 {[%emt 0:02:43]} cxd3 {[%emt 0:02:12]} 30. cxd3 {[%emt 0:00:34]} Qd4 {[%emt 0:00:57]} 31. Bxg7 {[%emt 0:06:17]} Kxg7 {[%emt 0:00:16]} 32. Qg3 {[%emt 0:01:48]} f5 {[%emt 0:11:28]} 33. Rc1 {[%emt 0:00:44]} Re7 {[%emt 0:00:53]} 34. Rc6 {[%emt 0:02:23]} Rf6 {[%emt 0:01:20]} 35. Rxf6 {[%emt 0:01:04]} Kxf6 {[%emt 0:00:07]} 36. Kh1 {[%emt 0:04:17]} Qe5 {[%emt 0:11:37]} 37. Qh4+ {[%emt 0:00:29]} Kf7 {[%emt 0:00:19]} 38. Qh7+ {[%emt 0:01:10]} Qg7 {[%emt 0:00:08]} 39. Bd5+ {[%emt 0:00:15]} Ke8 {[%emt 0:00:35]} 40. Bc6+ {[%emt 0:01:05]} Kf8 {[%emt 0:01:42]} 41. Qh4 {[%emt 0:02:41]} Bxd3 {[%emt 0:12:05]} 42. Qxb4 {[%emt 0:01:17]} Qe5 {[%emt 0:00:10]} 43. Kg2 {[%emt 0:11:45]} Kg7 {[%emt 0:03:36]} 44. Qxa3 {[%emt 0:05:43]} Be4+ {[%emt 0:00:00]} 45. Bxe4 {[%emt 0:00:19]} Qxe4+ {[%emt 0:00:00]} 46. Kh2 {[%emt 0:00:52]} Qe5+ {[%emt 0:00:00]} 47. Kg2 {[%emt 0:00:34]} Qd5+ {[%emt 0:00:00]} 48. Kh2 {[%emt 0:00:47]} Re1 {[%emt 0:00:00]} 49. Qb2+ {[%emt 0:08:07]} Kh7 {[%emt 0:00:00]} 50. Re2 {[%emt 0:02:15]} Qh1+ {[%emt 0:04:07]} 51. Kg3 {[%emt 0:00:05]} Qg1+ {[%emt 0:00:33]} 52. Kf3 {[%emt 0:01:35]} Qf1+ {[%emt 0:00:09]} 53. Ke3 {[%emt 0:00:18]} Rd1 {[%emt 0:01:26]} 54. Qe5 {[%emt 0:01:22]} Qxh3+ {[%emt 0:00:17]} 55. Kf4 {[%emt 0:00:21]} Qg4+ {[%emt 0:00:29]} 56. Ke3 {[%emt 0:00:08]} Qg1+ {[%emt 0:00:30]} 57. Kf4 {[%emt 0:01:23]} Rf1+ {[%emt 0:00:08]} 0-1

[Event "105th British-ch 2018"]
[Site "Hull"]
[Date "2018.08.03"]
[Round "7"]
[White "Price, Gwilym T"]
[Black "Burke, Mitchell R"]
[Result "1/2-1/2"]
[ECO "B32"]
[WhiteElo "2085"]
[BlackElo "1988"]
[Annotator "NA"]
[PlyCount "91"]
[EventDate "2018.07.28"]
[EventType "swiss"]
[EventCountry "GBR"]
[SourceTitle "playchess.com"]
[Source "ChessBase"]
[SourceQuality "1"]
[TimeControl "40/5400+30:1800+30"]

1. e4 {[%emt 0:00:00]} c5 {[%emt 0:00:11]} 2. Nf3 {[%emt 0:00:00]} Nc6 {[%emt 0:01:04]} 3. d4 {[%emt 0:00:01]} cxd4 {[%emt 0:00:09]} 4. Nxd4 {[%emt 0:00:05]} d5 {[%emt 0:01:54]} 5. Nxc6 {[%emt 0:02:13]} bxc6 {[%emt 0:00:19]} 6. exd5 {[%emt 0:00:54]} Qxd5 {[%emt 0:01:09]} 7. Nc3 {[%emt 0:01:51]} Qxd1+ {[%emt 0:05:19]} 8. Nxd1 {[%emt 0:02:47]} e5 {[%emt 0:02:17]} 9. Bd3 {[%emt 0:01:38]} f5 {[%emt 0:24:08]} 10. O-O {[%emt 0:01:46]} Bd6 {[%emt 0:07:16]} 11. Re1 {[%emt 0:09:45]} Ne7 {[%emt 0:06:33]} 12. b3 {[%emt 0:03:24]} O-O {[%emt 0:18:33]} 13. Bb2 {[%emt 0:04:33]} Ng6 {[%emt 0:04:21]} 14. Ne3 {[%emt 0:02:16]} e4 {[%emt 0:04:36]} 15. Bf1 {[%emt 0:00:58]} Be6 {[%emt 0:01:17]} 16. Nc4 {[%emt 0:02:38]} Bc5 {[%emt 0:02:17]} 17. Ba3 {[%emt 0:04:29]} Bxa3 {[%emt 0:00:44]} 18. Nxa3 {[%emt 0:00:09]} Bf7 {[%emt 0:03:30]} 19. Rad1 {[%emt 0:04:19]} Rfd8 {[%emt 0:00:15]} 20. Nc4 {[%emt 0:01:50]} Bxc4 {[%emt 0:03:08]} 21. Bxc4+ {[%emt 0:00:13]} Kf8 {[%emt 0:00:03]} 22. Be6 {[%emt 0:00:43]} Ne7 {[%emt 0:00:24]} 23. c4 {[%emt 0:03:27]} c5 {[%emt 0:02:27]} 24. f3 {[%emt 0:04:08]} exf3 {[%emt 0:02:27]} 25. gxf3 {[%emt 0:01:05]} g6 {[%emt 0:00:58]} 26. Kf2 {[%emt 0:01:15]} Kg7 {[%emt 0:04:04]} 27. Bd7 {[%emt 0:04:14]} Kf7 {[%emt 0:01:13]} 28. Re5 {[%emt 0:01:10]} Rac8 {[%emt 0:00:43]} 29. Bxc8 {[%emt 0:05:23]} Rxd1 {[%emt 0:00:05]} 30. Rxc5 {[%emt 0:00:09]} Rd2+ {[%emt 0:00:19]} 31. Kg3 {[%emt 0:00:58]} Rxa2 {[%emt 0:00:13]} 32. b4 {[%emt 0:01:04]} a5 {[%emt 0:00:41]} 33. bxa5 {[%emt 0:09:35]} Nxc8 {[%emt 0:00:17]} 34. Rxc8 {[%emt 0:00:06]} Rxa5 {[%emt 0:00:10]} 35. Rc7+ {[%emt 0:00:10]} Kf6 {[%emt 0:02:35]} 36. Rxh7 {[%emt 0:01:20]} Rc5 {[%emt 0:01:25]} 37. Rh4 {[%emt 0:01:25]} g5 {[%emt 0:00:08]} 38. Rd4 {[%emt 0:00:28]} Ke5 {[%emt 0:00:24]} 39. Rd5+ {[%emt 0:00:20]} Rxd5 {[%emt 0:00:18]} 40. cxd5 {[%emt 0:00:06]} Kxd5 {[%emt 0:01:25]} 41. h4 {[%emt 0:30:19]} f4+ {[%emt 0:06:45]} 42. Kg4 {[%emt 0:00:00]} gxh4 {[%emt 0:00:05]} 43. Kxh4 {[%emt 0:00:00]} Ke6 {[%emt 0:00:34]} 44. Kg5 {[%emt 0:00:00]} Ke5 {[%emt 0:00:08]} 45. Kg4 {[%emt 0:00:00]} Ke6 {[%emt 0:00:11]} 46. Kxf4 {[%emt 0:00:00] Ke5+ [%emt 00:00:33] Ke4+} 1/2-1/2

[Event "105th British-ch 2018"]
[Site "Hull"]
[Date "2018.08.03"]
[Round "7"]
[White "Ratnesan, Ranesh"]
[Black "McDougall, William M"]
[Result "0-1"]
[ECO "D94"]
[WhiteElo "2073"]
[BlackElo "2056"]
[Annotator "NA"]
[PlyCount "80"]
[EventDate "2018.07.28"]
[EventType "swiss"]
[EventCountry "GBR"]
[SourceTitle "playchess.com"]
[Source "ChessBase"]
[SourceQuality "1"]
[TimeControl "40/5400+30:1800+30"]

1. d4 {[%emt 0:00:00]} Nf6 {[%emt 0:00:00]} 2. c4 {[%emt 0:00:00]} g6 {[%emt 0:00:00]} 3. Nf3 {[%emt 0:00:00]} Bg7 {[%emt 0:00:00]} 4. Nc3 {[%emt 0:00:00]} d5 {[%emt 0:00:00]} 5. e3 {[%emt 0:00:12]} O-O {[%emt 0:00:48]} 6. Bd2 {[%emt 0:00:07]} c5 {[%emt 0:05:25]} 7. dxc5 {[%emt 0:00:30]} Na6 {[%emt 0:02:13]} 8. cxd5 {[%emt 0:00:27]} Nxd5 {[%emt 0:01:06]} 9. Bxa6 {[%emt 0:03:06]} Nxc3 {[%emt 0:04:06]} 10. Bxc3 {[%emt 0:00:23]} Bxc3+ {[%emt 0:00:05]} 11. bxc3 {[%emt 0:00:11]} bxa6 {[%emt 0:00:44]} 12. Qxd8 {[%emt 0:01:54]} Rxd8 {[%emt 0:00:05]} 13. Ke2 {[%emt 0:01:00]} Be6 {[%emt 0:01:47]} 14. Rhd1 {[%emt 0:11:50]} Rdc8 {[%emt 0:00:56]} 15. Ng5 {[%emt 0:10:30]} Bc4+ {[%emt 0:02:01]} 16. Ke1 {[%emt 0:00:32]} Rxc5 {[%emt 0:00:47]} 17. Ne4 {[%emt 0:00:08]} Rc7 {[%emt 0:00:36]} 18. g4 {[%emt 0:15:10]} f6 {[%emt 0:07:22]} 19. Rd2 {[%emt 0:08:22]} Rb8 {[%emt 0:01:02]} 20. f4 {[%emt 0:01:46]} Kf7 {[%emt 0:01:26]} 21. Rad1 {[%emt 0:05:39]} Be6 {[%emt 0:03:19]} 22. h3 {[%emt 0:07:10]} Rb5 {[%emt 0:00:58]} 23. Rc1 {[%emt 0:06:32]} Ra5 {[%emt 0:04:20]} 24. Rcc2 {[%emt 0:00:43]} h5 {[%emt 0:05:41]} 25. Nf2 {[%emt 0:10:59]} Ra3 {[%emt 0:03:54]} 26. Rd3 {[%emt 0:10:36]} Bxa2 {[%emt 0:03:09]} 27. Rc1 {[%emt 0:00:08]} Bc4 {[%emt 0:01:18]} 28. Rd2 {[%emt 0:01:08]} Bb5 {[%emt 0:01:24]} 29. Nd1 {[%emt 0:02:30]} a5 {[%emt 0:02:03]} 30. gxh5 {[%emt 0:00:29]} gxh5 {[%emt 0:00:02]} 31. h4 {[%emt 0:00:20]} Rb3 {[%emt 0:02:55]} 32. Rd5 {[%emt 0:01:44]} a4 {[%emt 0:07:41]} 33. Rxh5 {[%emt 0:01:10]} a3 {[%emt 0:00:47]} 34. Ra1 {[%emt 0:00:26]} a5 {[%emt 0:06:30]} 35. Kd2 {[%emt 0:00:39]} a4 {[%emt 0:00:22]} 36. Rd5 {[%emt 0:00:58]} Rc8 {[%emt 0:02:51]} 37. h5 {[%emt 0:00:35]} Rg8 {[%emt 0:00:46]} 38. Rxa3 {[%emt 0:00:31]} Rg2+ {[%emt 0:00:49]} 39. Kc1 {[%emt 0:00:26]} Rxa3 {[%emt 0:01:48]} 40. Rxb5 {[%emt 0:00:03]} Ra1+ {[%emt 0:01:10]} 0-1

[Event "105th British-ch 2018"]
[Site "Hull"]
[Date "2018.08.03"]
[Round "7"]
[White "Jackson, Sheila"]
[Black "Krzyzanowski, Patryk"]
[Result "1/2-1/2"]
[ECO "B14"]
[WhiteElo "2072"]
[BlackElo "2087"]
[Annotator "NA"]
[PlyCount "89"]
[EventDate "2018.07.28"]
[EventType "swiss"]
[EventCountry "GBR"]
[SourceTitle "playchess.com"]
[Source "ChessBase"]
[SourceQuality "1"]
[TimeControl "40/5400+30:1800+30"]

1. e4 {[%emt 0:00:00]} c5 {[%emt 0:00:00]} 2. c3 {[%emt 0:00:00]} g6 {[%emt 0:00:00]} 3. d4 {[%emt 0:00:00]} cxd4 {[%emt 0:00:12]} 4. cxd4 {[%emt 0:00:00]} d5 {[%emt 0:00:13]} 5. exd5 {[%emt 0:00:26]} Nf6 {[%emt 0:00:10]} 6. Bb5+ {[%emt 0:00:26]} Nbd7 {[%emt 0:00:12]} 7. Nc3 {[%emt 0:01:03]} Bg7 {[%emt 0:00:13]} 8. d6 {[%emt 0:02:02]} exd6 {[%emt 0:07:10]} 9. Qe2+ {[%emt 0:00:39]} Qe7 {[%emt 0:00:10]} 10. Bf4 {[%emt 0:00:11]} Qxe2+ {[%emt 0:01:05]} 11. Ngxe2 {[%emt 0:00:14]} Ke7 {[%emt 0:01:23]} 12. O-O {[%emt 0:02:25]} Nb6 {[%emt 0:00:36]} 13. Rfe1 {[%emt 0:00:38]} a6 {[%emt 0:00:15]} 14. Bd3 {[%emt 0:02:53]} Be6 {[%emt 0:00:32]} 15. Ne4 {[%emt 0:01:54]} Nxe4 {[%emt 0:08:19]} 16. Bxe4 {[%emt 0:00:01]} Rab8 {[%emt 0:00:42]} 17. Rad1 {[%emt 0:14:58]} f5 {[%emt 0:05:17]} 18. Bf3 {[%emt 0:01:44]} Kd7 {[%emt 0:01:37]} 19. d5 {[%emt 0:07:04]} Bf7 {[%emt 0:00:31]} 20. b3 {[%emt 0:00:31]} Rhe8 {[%emt 0:07:26]} 21. g4 {[%emt 0:08:19]} Be5 {[%emt 0:40:08]} 22. Be3 {[%emt 0:22:03]} Na8 {[%emt 0:02:43]} 23. Rc1 {[%emt 0:02:16]} Nc7 {[%emt 0:07:04]} 24. Red1 {[%emt 0:00:42]} Rbc8 {[%emt 0:02:40]} 25. a4 {[%emt 0:02:19]} h5 {[%emt 0:05:22]} 26. gxf5 {[%emt 0:01:22]} gxf5 {[%emt 0:00:08]} 27. Kh1 {[%emt 0:01:23]} Rg8 {[%emt 0:03:26]} 28. Rc4 {[%emt 0:02:58]} b5 {[%emt 0:02:39]} 29. Rh4 {[%emt 0:04:51]} Rg7 {[%emt 0:02:39]} 30. Ng3 {[%emt 0:05:37]} f4 {[%emt 0:01:15]} 31. Bxf4 {[%emt 0:00:19]} Bf6 {[%emt 0:00:14]} 32. Nxh5 {[%emt 0:02:53]} Bxh4 {[%emt 0:00:37]} 33. Nxg7 {[%emt 0:00:06]} Rg8 {[%emt 0:00:09]} 34. Ne6 {[%emt 0:07:03]} Nxe6 {[%emt 0:01:19]} 35. dxe6+ {[%emt 0:00:04]} Bxe6 {[%emt 0:00:10]} 36. Rxd6+ {[%emt 0:02:36]} Ke7 {[%emt 0:00:05]} 37. Rxa6 {[%emt 0:00:32]} Bxf2 {[%emt 0:00:14]} 38. Bd6+ {[%emt 0:03:08]} Kd7 {[%emt 0:00:26]} 39. Bg3 {[%emt 0:00:57]} Bxg3 {[%emt 0:00:49]} 40. hxg3 {[%emt 0:00:01]} bxa4 {[%emt 0:00:29]} 41. bxa4 {[%emt 0:33:08]} Rxg3 {[%emt 0:30:19]} 42. Bg2 {[%emt 0:00:00]} Rg5 {[%emt 0:00:00]} 43. Kh2 {[%emt 0:00:00]} Bd5 {[%emt 0:00:00]} 44. Bf1 {[%emt 0:00:00]} Bc6 {[%emt 0:00:00]} 45. Ra7+ {[%emt 0:00:00]} 1/2-1/2

[Event "105th British-ch 2018"]
[Site "Hull"]
[Date "2018.08.03"]
[Round "7"]
[White "Miller, Dominic"]
[Black "Verma, Aditya"]
[Result "1-0"]
[ECO "B76"]
[WhiteElo "2017"]
[BlackElo "2084"]
[Annotator "NA"]
[PlyCount "71"]
[EventDate "2018.07.28"]
[EventType "swiss"]
[EventCountry "GBR"]
[SourceTitle "playchess.com"]
[Source "ChessBase"]
[SourceQuality "1"]
[TimeControl "40/5400+30:1800+30"]

1. e4 {[%emt 0:00:00]} c5 {[%emt 0:00:00]} 2. Nf3 {[%emt 0:00:00]} d6 {[%emt 0:00:00]} 3. d4 {[%emt 0:00:00]} cxd4 {[%emt 0:00:00]} 4. Nxd4 {[%emt 0:00:00]} Nf6 {[%emt 0:00:00]} 5. Nc3 {[%emt 0:00:00]} g6 {[%emt 0:00:00]} 6. Be3 {[%emt 0:00:05]} Bg7 {[%emt 0:00:00]} 7. f3 {[%emt 0:00:10]} Nc6 {[%emt 0:00:00]} 8. Qd2 {[%emt 0:00:09]} O-O {[%emt 0:00:00]} 9. O-O-O {[%emt 0:00:40]} Bd7 {[%emt 0:00:08]} 10. g4 {[%emt 0:00:15]} Ne5 {[%emt 0:01:19]} 11. h4 {[%emt 0:01:36]} Rc8 {[%emt 0:00:16]} 12. h5 {[%emt 0:00:40]} Qa5 {[%emt 0:00:09]} 13. Nb3 {[%emt 0:01:08]} Qc7 {[%emt 0:01:04]} 14. Be2 {[%emt 0:02:50]} b5 {[%emt 0:08:25]} 15. Kb1 {[%emt 0:11:27]} Nc4 {[%emt 0:06:54]} 16. Bxc4 {[%emt 0:01:27]} bxc4 {[%emt 0:00:04]} 17. Nc1 {[%emt 0:03:39]} Rb8 {[%emt 0:00:49]} 18. h6 {[%emt 0:02:25]} Qb7 {[%emt 0:08:18]} 19. b3 {[%emt 0:00:07]} Bh8 {[%emt 0:00:06]} 20. g5 {[%emt 0:11:23]} Ne8 {[%emt 0:22:23]} 21. Bd4 {[%emt 0:02:14]} Bxd4 {[%emt 0:03:17]} 22. Qxd4 {[%emt 0:00:05]} e5 {[%emt 0:00:12]} 23. Qxc4 {[%emt 0:03:24]} Rc8 {[%emt 0:03:04]} 24. Qd3 {[%emt 0:00:10]} Be6 {[%emt 0:01:01]} 25. N1e2 {[%emt 0:04:34]} f6 {[%emt 0:03:35]} 26. f4 {[%emt 0:07:30]} f5 {[%emt 0:14:27]} 27. fxe5 {[%emt 0:20:09]} dxe5 {[%emt 0:00:07]} 28. exf5 {[%emt 0:01:14]} Rxf5 {[%emt 0:02:05]} 29. Qe3 {[%emt 0:01:56]} Nd6 {[%emt 0:17:34]} 30. Rxd6 {[%emt 0:03:45]} Qxh1+ {[%emt 0:00:10]} 31. Kb2 {[%emt 0:00:02]} Bf7 {[%emt 0:08:19]} 32. Ng3 {[%emt 0:00:18]} Qh2 {[%emt 0:01:36]} 33. Nxf5 {[%emt 0:00:24]} gxf5 {[%emt 0:00:02]} 34. Qxa7 {[%emt 0:03:01]} Qg3 {[%emt 0:00:49]} 35. Rc6 {[%emt 0:02:36]} Rf8 {[%emt 0:00:44]} 36. Qe7 {[%emt 0:00:56]} 1-0

[Event "105th British-ch 2018"]
[Site "Hull"]
[Date "2018.08.03"]
[Round "7"]
[White "Young"]
[Black "Pollack, Oscar"]
[Result "1-0"]
[ECO "C18"]
[WhiteElo "1962"]
[BlackElo "2064"]
[Annotator "NA"]
[PlyCount "149"]
[EventDate "2018.07.28"]
[EventType "swiss"]
[EventCountry "GBR"]
[SourceTitle "playchess.com"]
[Source "ChessBase"]
[SourceQuality "1"]
[TimeControl "40/5400+30:1800+30"]

1. e4 {[%emt 0:00:00]} e6 {[%emt 0:00:00]} 2. d4 {[%emt 0:00:00]} d5 {[%emt 0:00:00]} 3. Nc3 {[%emt 0:00:00]} Bb4 {[%emt 0:00:00]} 4. e5 {[%emt 0:00:12]} c5 {[%emt 0:00:00]} 5. a3 {[%emt 0:00:12]} Bxc3+ {[%emt 0:00:00]} 6. bxc3 {[%emt 0:00:09]} Ne7 {[%emt 0:00:05]} 7. Qg4 {[%emt 0:00:19]} Qc7 {[%emt 0:00:25]} 8. Bd3 {[%emt 0:00:45]} cxd4 {[%emt 0:01:04]} 9. Ne2 {[%emt 0:00:18]} dxc3 {[%emt 0:00:22]} 10. Qxg7 {[%emt 0:00:33]} Rg8 {[%emt 0:00:06]} 11. Qxh7 {[%emt 0:00:16]} Qxe5 {[%emt 0:00:57]} 12. h4 {[%emt 0:00:24]} Nd7 {[%emt 0:02:32]} 13. Bf4 {[%emt 0:00:24]} Qf6 {[%emt 0:00:59]} 14. Bg5 {[%emt 0:00:17]} Qh8 {[%emt 0:00:38]} 15. Qxh8 {[%emt 0:00:11]} Rxh8 {[%emt 0:00:01]} 16. Nxc3 {[%emt 0:00:22]} f6 {[%emt 0:01:23]} 17. Bd2 {[%emt 0:00:58]} Ne5 {[%emt 0:05:13]} 18. h5 {[%emt 0:07:27]} Bd7 {[%emt 0:03:35]} 19. Rb1 {[%emt 0:04:30]} Bc6 {[%emt 0:02:35]} 20. f3 {[%emt 0:05:05]} Kd7 {[%emt 0:06:17]} 21. Kf2 {[%emt 0:03:51]} Rag8 {[%emt 0:02:01]} 22. g4 {[%emt 0:13:46]} f5 {[%emt 0:08:00]} 23. gxf5 {[%emt 0:12:44]} Nxd3+ {[%emt 0:01:18]} 24. cxd3 {[%emt 0:00:17]} Nxf5 {[%emt 0:00:09]} 25. Bf4 {[%emt 0:03:18]} Rh7 {[%emt 0:19:15]} 26. Rbg1 {[%emt 0:15:11]} Rxg1 {[%emt 0:00:00]} 27. Kxg1 {[%emt 0:00:15]} Ke7 {[%emt 0:00:00]} 28. Ne2 {[%emt 0:09:37]} Bb5 {[%emt 0:00:00]} 29. Bg5+ {[%emt 0:09:37]} Kf7 {[%emt 0:00:00]} 30. Nf4 {[%emt 0:00:00]} Ne7 {[%emt 0:09:10]} 31. Kf2 {[%emt 0:00:49]} Bc6 {[%emt 0:05:48]} 32. Re1 {[%emt 0:01:11]} Ng8 {[%emt 0:07:53]} 33. Rxe6 {[%emt 0:03:02]} Rxh5 {[%emt 0:04:16]} 34. Rxc6 {[%emt 0:01:11]} Rxg5 {[%emt 0:00:15]} 35. Rc7+ {[%emt 0:00:14]} Kf6 {[%emt 0:04:48]} 36. Rxb7 {[%emt 0:00:34]} Rf5 {[%emt 0:02:08]} 37. Ne2 {[%emt 0:01:02]} Nh6 {[%emt 0:02:50]} 38. Nd4 {[%emt 0:03:41]} Rh5 {[%emt 0:00:44]} 39. Rxa7 {[%emt 0:00:37]} Ke5 {[%emt 0:01:28]} 40. Nc6+ {[%emt 0:01:44]} Kd6 {[%emt 0:01:27]} 41. Nd4 {[%emt 0:32:14]} Ke5 {[%emt 0:30:39]} 42. Ke3 {[%emt 0:01:29]} Rh3 {[%emt 0:01:10]} 43. Re7+ {[%emt 0:00:00]} Kd6 {[%emt 0:00:00]} 44. Re6+ {[%emt 0:00:00]} Kd7 {[%emt 0:00:00]} 45. Rg6 {[%emt 0:00:00]} Nf7 {[%emt 0:00:00]} 46. a4 {[%emt 0:00:00]} Ne5 {[%emt 0:00:00]} 47. Rg7+ {[%emt 0:00:00]} Kd6 {[%emt 0:00:00]} 48. Rg1 {[%emt 0:00:00]} Rh8 {[%emt 0:00:00]} 49. Nb5+ {[%emt 0:00:00]} Kd7 {[%emt 0:06:28]} 50. Rg7+ {[%emt 0:00:00]} Ke6 {[%emt 0:00:00]} 51. a5 {[%emt 0:00:00]} Rb8 {[%emt 0:00:00]} 52. Nd4+ {[%emt 0:00:00]} Kf6 {[%emt 0:00:00]} 53. Rg1 {[%emt 0:00:00]} Re8 {[%emt 0:00:00]} 54. Kd2 {[%emt 0:00:00]} Rh8 {[%emt 0:00:00]} 55. Ra1 {[%emt 0:00:00]} Nd7 {[%emt 0:00:00]} 56. a6 {[%emt 0:00:00]} Ke5 {[%emt 0:00:00]} 57. Nb5 {[%emt 0:02:51]} d4 {[%emt 0:00:00]} 58. a7 {[%emt 0:00:00]} Nb6 {[%emt 0:00:00]} 59. Nc7 {[%emt 0:02:38]} Rh2+ {[%emt 0:00:00]} 60. Kc1 {[%emt 0:01:05]} Rh1+ {[%emt 0:00:00]} 61. Kb2 {[%emt 0:00:26]} Rh2+ {[%emt 0:00:00]} 62. Kb3 {[%emt 0:00:00]} Rd2 {[%emt 0:00:00]} 63. Ra5+ {[%emt 0:00:43]} Kd6 {[%emt 0:00:00]} 64. Ra6 {[%emt 0:02:19]} Rxd3+ {[%emt 0:00:11]} 65. Kb2 {[%emt 0:00:41]} Rd2+ {[%emt 0:01:47]} 66. Kc1 {[%emt 0:00:18]} Kxc7 {[%emt 0:00:38]} 67. Kxd2 {[%emt 0:00:09]} Na8 {[%emt 0:00:07]} 68. Kd3 {[%emt 0:00:10]} Kb7 {[%emt 0:00:11]} 69. Ra1 {[%emt 0:00:14]} Nc7 {[%emt 0:00:16]} 70. a8=Q+ {[%emt 0:00:46]} Nxa8 {[%emt 0:00:02]} 71. Rxa8 {[%emt 0:00:10]} Kxa8 {[%emt 0:00:08]} 72. Kxd4 {[%emt 0:00:17]} Kb7 {[%emt 0:00:05]} 73. Kd5 {[%emt 0:00:09]} Kc8 {[%emt 0:00:16]} 74. Ke6 {[%emt 0:00:09]} Kd8 {[%emt 0:00:20]} 75. Kf7 {[%emt 0:00:07]} 1-0